[Event "Late-Titled-Tuesday-Blitz-June-25-2024"]
[Site "Chess.com"]
[Date "2024.06.25"]
[Round "3"]
[White "Kaslask"]
[Black "JulbeNn"]
[Result "0-1"]
[WhiteElo "2234"]
[BlackElo "2543"]
[TimeControl "180+1"]
[EndTime "14:24:12 PDT"]
[Termination "JulbeNn won by resignation"]

1. c4 {[%clk 0:03:00.9]} 1... Nf6 {[%clk 0:02:59.3]} 2. Nc3 {[%clk 0:02:59.7]}
2... g6 {[%clk 0:02:59.7]} 3. e4 {[%clk 0:02:59.4]} 3... d6 {[%clk 0:02:59.5]}
4. d4 {[%clk 0:02:59.3]} 4... Bg7 {[%clk 0:02:59.6]} 5. f3 {[%clk 0:02:58.8]}
5... O-O {[%clk 0:02:54.7]} 6. Nge2 {[%clk 0:02:58.4]} 6... e5 {[%clk 0:02:51]}
7. Bg5 {[%clk 0:02:55.3]} 7... Qe8 {[%clk 0:02:45.8]} 8. d5 {[%clk 0:02:53.8]}
8... a5 {[%clk 0:02:44.9]} 9. Qd2 {[%clk 0:02:50.9]} 9... Na6 {[%clk 0:02:44.7]}
10. g4 {[%clk 0:02:50.4]} 10... Nc5 {[%clk 0:02:41.5]} 11. Ng3 {[%clk
0:02:50.2]} 11... Bd7 {[%clk 0:02:37]} 12. h4 {[%clk 0:02:48.1]} 12... Kh8
{[%clk 0:02:09.3]} 13. Be2 {[%clk 0:02:45.7]} 13... c6 {[%clk 0:01:42.9]} 14. h5
{[%clk 0:02:44.8]} 14... Kg8 {[%clk 0:01:39.9]} 15. dxc6 {[%clk 0:02:39.3]}
15... bxc6 {[%clk 0:01:36.5]} 16. Qxd6 {[%clk 0:02:35.4]} 16... Ne6 {[%clk
0:01:36.6]} 17. Be3 {[%clk 0:02:25]} 17... Nd4 {[%clk 0:01:30.4]} 18. O-O-O
{[%clk 0:02:12.9]} 18... Be6 {[%clk 0:01:27.1]} 19. Rxd4 {[%clk 0:02:10.8]}
19... exd4 {[%clk 0:01:24.8]} 20. Bxd4 {[%clk 0:02:09.4]} 20... Rd8 {[%clk
0:01:23]} 21. Qc5 {[%clk 0:02:09.4]} 21... Nd7 {[%clk 0:01:20.9]} 22. Qa7 {[%clk
0:02:09.3]} 22... Ra8 {[%clk 0:01:18.7]} 23. Qxa8 {[%clk 0:01:59.7]} 23... Qxa8
{[%clk 0:01:18.2]} 24. Bxg7 {[%clk 0:01:58.9]} 24... Kxg7 {[%clk 0:01:19.1]} 25.
g5 {[%clk 0:01:55]} 25... Qb8 {[%clk 0:01:16.7]} 0-1

[Event "Late-Titled-Tuesday-Blitz-June-25-2024"]
[Site "Chess.com"]
[Date "2024.06.25"]
[Round "3"]
[White "drdaro"]
[Black "Necromon"]
[Result "0-1"]
[WhiteElo "2322"]
[BlackElo "2561"]
[TimeControl "180+1"]
[EndTime "14:24:18 PDT"]
[Termination "Necromon won by resignation"]

1. Nf3 {[%clk 0:03:00.1]} 1... Nf6 {[%clk 0:02:58.8]} 2. g3 {[%clk 0:02:58.6]}
2... g6 {[%clk 0:02:59.3]} 3. Bg2 {[%clk 0:02:58.6]} 3... Bg7 {[%clk 0:02:59.4]}
4. O-O {[%clk 0:02:59.2]} 4... O-O {[%clk 0:02:59.8]} 5. d4 {[%clk 0:02:59.4]}
5... d6 {[%clk 0:02:58]} 6. Re1 {[%clk 0:02:59.5]} 6... c5 {[%clk 0:02:54.4]} 7.
e4 {[%clk 0:02:58.1]} 7... cxd4 {[%clk 0:02:53.2]} 8. Nxd4 {[%clk 0:02:59]} 8...
Nc6 {[%clk 0:02:53.6]} 9. Nc3 {[%clk 0:02:57.7]} 9... Nxd4 {[%clk 0:02:50.5]}
10. Qxd4 {[%clk 0:02:58.6]} 10... Be6 {[%clk 0:02:50.9]} 11. Qa4 {[%clk
0:02:27.2]} 11... a6 {[%clk 0:02:45.5]} 12. Nd5 {[%clk 0:02:14.7]} 12... b5
{[%clk 0:02:40.7]} 13. Qa3 {[%clk 0:02:10.6]} 13... Bxd5 {[%clk 0:02:29]} 14.
exd5 {[%clk 0:02:11.5]} 14... Nd7 {[%clk 0:02:29.2]} 15. Bg5 {[%clk 0:02:04.1]}
15... Re8 {[%clk 0:02:28.5]} 16. c3 {[%clk 0:01:58.4]} 16... Ne5 {[%clk
0:02:24.6]} 17. Qb4 {[%clk 0:01:37.1]} 17... Nd3 {[%clk 0:02:24.3]} 18. Qe4
{[%clk 0:01:33.7]} 18... Nxe1 {[%clk 0:02:24]} 19. Rxe1 {[%clk 0:01:34.6]} 19...
Bf8 {[%clk 0:02:23.7]} 20. h4 {[%clk 0:01:30.3]} 20... Qd7 {[%clk 0:02:18.3]}
21. h5 {[%clk 0:01:24.7]} 21... e5 {[%clk 0:02:18.3]} 22. dxe6 {[%clk
0:01:23.3]} 22... Rxe6 {[%clk 0:02:18.7]} 23. Qxa8 {[%clk 0:01:22.2]} 23...
Rxe1+ {[%clk 0:02:18.9]} 24. Kh2 {[%clk 0:01:21.8]} 24... Qf5 {[%clk 0:02:17.7]}
25. f4 {[%clk 0:00:57.4]} 25... h6 {[%clk 0:02:15.5]} 0-1

[Event "Late-Titled-Tuesday-Blitz-June-25-2024"]
[Site "Chess.com"]
[Date "2024.06.25"]
[Round "3"]
[White "Supergiuly"]
[Black "Keithonsky"]
[Result "0-1"]
[WhiteElo "2368"]
[BlackElo "2602"]
[TimeControl "180+1"]
[EndTime "14:24:23 PDT"]
[Termination "Keithonsky won by resignation"]

1. e4 {[%clk 0:02:47.3]} 1... c5 {[%clk 0:02:58.6]} 2. Nc3 {[%clk 0:02:45.1]}
2... g6 {[%clk 0:02:57.6]} 3. g3 {[%clk 0:02:45.3]} 3... Bg7 {[%clk 0:02:57.9]}
4. Bg2 {[%clk 0:02:45.9]} 4... Nc6 {[%clk 0:02:58.2]} 5. Nge2 {[%clk 0:02:46.4]}
5... d6 {[%clk 0:02:58.4]} 6. O-O {[%clk 0:02:46.1]} 6... Rb8 {[%clk 0:02:59]}
7. d3 {[%clk 0:02:42.8]} 7... b5 {[%clk 0:02:59.1]} 8. a3 {[%clk 0:02:41.9]}
8... a5 {[%clk 0:02:58.5]} 9. f4 {[%clk 0:02:40.7]} 9... b4 {[%clk 0:02:57.7]}
10. axb4 {[%clk 0:02:40.5]} 10... axb4 {[%clk 0:02:58.6]} 11. e5 {[%clk
0:02:34.9]} 11... Bb7 {[%clk 0:02:56.6]} 12. Nb5 {[%clk 0:02:22.1]} 12... Qb6
{[%clk 0:02:54]} 13. c4 {[%clk 0:02:15.6]} 13... dxe5 {[%clk 0:02:52.4]} 14.
fxe5 {[%clk 0:02:13.2]} 14... Nxe5 {[%clk 0:02:53.3]} 15. Bf4 {[%clk 0:02:12.1]}
15... Bxg2 {[%clk 0:02:52.4]} 16. Kxg2 {[%clk 0:02:11.6]} 16... Qc6+ {[%clk
0:02:50.1]} 17. Kg1 {[%clk 0:02:10.2]} 17... Rd8 {[%clk 0:02:49.7]} 18. d4
{[%clk 0:02:09.1]} 18... Nf3+ {[%clk 0:02:47.2]} 19. Kf2 {[%clk 0:02:01.6]}
19... Nxh2 {[%clk 0:02:41.3]} 20. d5 {[%clk 0:01:58.4]} 20... Qf6 {[%clk
0:02:40]} 21. Nc7+ {[%clk 0:01:35.8]} 21... Kf8 {[%clk 0:02:39]} 22. Rh1 {[%clk
0:01:23.8]} 22... Ng4+ {[%clk 0:02:37.8]} 23. Ke1 {[%clk 0:01:08.6]} 23... Qxb2
{[%clk 0:02:31.3]} 24. Bd2 {[%clk 0:00:47.1]} 24... Qxa1 {[%clk 0:02:26.4]} 25.
Qxa1 {[%clk 0:00:43.1]} 25... Bxa1 {[%clk 0:02:27.3]} 26. Rf1 {[%clk 0:00:43.2]}
26... N8f6 {[%clk 0:02:26]} 27. Nf4 {[%clk 0:00:41.5]} 27... Be5 {[%clk
0:02:24.7]} 28. Nfe6+ {[%clk 0:00:41.2]} 28... fxe6 {[%clk 0:02:25.6]} 29. Nxe6+
{[%clk 0:00:41.4]} 29... Kf7 {[%clk 0:02:26.3]} 0-1

[Event "Late-Titled-Tuesday-Blitz-June-25-2024"]
[Site "Chess.com"]
[Date "2024.06.25"]
[Round "3"]
[White "LidongW"]
[Black "Davidalhesa2007"]
[Result "1-0"]
[WhiteElo "2342"]
[BlackElo "1907"]
[TimeControl "180+1"]
[EndTime "14:24:24 PDT"]
[Termination "LidongW won by checkmate"]

1. e4 {[%clk 0:03:00.9]} 1... c5 {[%clk 0:02:59.5]} 2. c3 {[%clk 0:03:00.7]}
2... Nf6 {[%clk 0:02:58.6]} 3. e5 {[%clk 0:03:01.1]} 3... Nd5 {[%clk 0:02:58.6]}
4. d4 {[%clk 0:03:02]} 4... e6 {[%clk 0:02:59.2]} 5. Nf3 {[%clk 0:03:01.7]} 5...
cxd4 {[%clk 0:02:59.1]} 6. cxd4 {[%clk 0:03:01.4]} 6... d6 {[%clk 0:02:59.7]} 7.
Nc3 {[%clk 0:02:59.6]} 7... dxe5 {[%clk 0:02:53.2]} 8. Nxe5 {[%clk 0:02:57.9]}
8... Bd6 {[%clk 0:02:49.3]} 9. Bb5+ {[%clk 0:02:47]} 9... Bd7 {[%clk 0:02:43.5]}
10. Nxd7 {[%clk 0:02:46.3]} 10... Nxd7 {[%clk 0:02:44.4]} 11. Qg4 {[%clk
0:02:31.8]} 11... g6 {[%clk 0:02:07.4]} 12. Nxd5 {[%clk 0:02:22.6]} 12... exd5
{[%clk 0:02:06.8]} 13. O-O {[%clk 0:02:22.5]} 13... a6 {[%clk 0:02:02.3]} 14.
Re1+ {[%clk 0:02:20.2]} 14... Be7 {[%clk 0:01:38.5]} 15. Bg5 {[%clk 0:02:19.6]}
15... axb5 {[%clk 0:01:32.4]} 16. Rxe7+ {[%clk 0:02:16.4]} 16... Kf8 {[%clk
0:01:32.6]} 17. Rxf7+ {[%clk 0:02:16]} 17... Kxf7 {[%clk 0:01:31.5]} 18. Bxd8
{[%clk 0:02:15.8]} 18... Rhxd8 {[%clk 0:01:32.4]} 19. Re1 {[%clk 0:02:07.6]}
19... Nf8 {[%clk 0:01:06.4]} 20. Qf4+ {[%clk 0:01:58.1]} 20... Kg8 {[%clk
0:00:53]} 21. Re7 {[%clk 0:01:56.4]} 21... Re8 {[%clk 0:00:48.3]} 22. Qf7+
{[%clk 0:01:56.2]} 22... Kh8 {[%clk 0:00:46.5]} 23. Qg7# {[%clk 0:01:57.1]} 1-0

[Event "Late-Titled-Tuesday-Blitz-June-25-2024"]
[Site "Chess.com"]
[Date "2024.06.25"]
[Round "3"]
[White "Bkmzzzzz"]
[Black "sergeikim"]
[Result "1-0"]
[WhiteElo "2408"]
[BlackElo "2596"]
[TimeControl "180+1"]
[EndTime "14:24:32 PDT"]
[Termination "Bkmzzzzz won by resignation"]

1. e4 {[%clk 0:03:00.9]} 1... e5 {[%clk 0:02:59.5]} 2. Nf3 {[%clk 0:03:01]} 2...
Nc6 {[%clk 0:02:59.5]} 3. Nc3 {[%clk 0:03:01.2]} 3... Nf6 {[%clk 0:02:58.8]} 4.
d4 {[%clk 0:03:01.8]} 4... exd4 {[%clk 0:02:58.8]} 5. Nd5 {[%clk 0:03:02.4]}
5... Nxe4 {[%clk 0:02:57.9]} 6. Qe2 {[%clk 0:03:01.6]} 6... f5 {[%clk
0:02:57.9]} 7. Ng5 {[%clk 0:03:02]} 7... d3 {[%clk 0:02:56.2]} 8. cxd3 {[%clk
0:03:02.3]} 8... Nd4 {[%clk 0:02:56.7]} 9. Qh5+ {[%clk 0:03:02.3]} 9... g6
{[%clk 0:02:57]} 10. Qh4 {[%clk 0:03:00.7]} 10... c6 {[%clk 0:02:56.9]} 11. dxe4
{[%clk 0:03:01]} 11... cxd5 {[%clk 0:02:56.9]} 12. exf5 {[%clk 0:03:01.3]} 12...
Nxf5 {[%clk 0:02:02.8]} 13. Qh3 {[%clk 0:02:55.6]} 13... Qa5+ {[%clk 0:01:54.4]}
14. Kd1 {[%clk 0:02:55.2]} 14... Qa4+ {[%clk 0:01:48]} 15. b3 {[%clk 0:02:29.1]}
15... Qd4+ {[%clk 0:01:45]} 16. Kc2 {[%clk 0:02:29.5]} 16... Qxa1 {[%clk
0:01:38.8]} 17. Bd3 {[%clk 0:01:50.2]} 17... Bg7 {[%clk 0:01:27.1]} 18. Re1+
{[%clk 0:01:48.4]} 18... Kf8 {[%clk 0:01:14.9]} 19. Bxf5 {[%clk 0:01:46.3]}
19... gxf5 {[%clk 0:00:55.4]} 20. Ba3+ {[%clk 0:01:44.1]} 1-0

[Event "Late-Titled-Tuesday-Blitz-June-25-2024"]
[Site "Chess.com"]
[Date "2024.06.25"]
[Round "3"]
[White "FMalexhdez"]
[Black "Gangster-accountant01"]
[Result "0-1"]
[WhiteElo "2301"]
[BlackElo "2557"]
[TimeControl "180+1"]
[EndTime "14:24:37 PDT"]
[Termination "Gangster-accountant01 won by resignation"]

1. e4 {[%clk 0:03:00.9]} 1... e5 {[%clk 0:02:57.7]} 2. Nf3 {[%clk 0:03:01]} 2...
Nc6 {[%clk 0:02:54.8]} 3. Bc4 {[%clk 0:03:00.7]} 3... Nf6 {[%clk 0:02:53.7]} 4.
d3 {[%clk 0:02:58.8]} 4... Bc5 {[%clk 0:02:50]} 5. c3 {[%clk 0:02:58.6]} 5...
O-O {[%clk 0:02:49.4]} 6. O-O {[%clk 0:02:56.9]} 6... d5 {[%clk 0:02:48.5]} 7.
exd5 {[%clk 0:02:55.5]} 7... Nxd5 {[%clk 0:02:49.4]} 8. Nbd2 {[%clk 0:02:53.1]}
8... Nb6 {[%clk 0:02:47.9]} 9. Bb5 {[%clk 0:02:52.7]} 9... Bg4 {[%clk
0:02:41.3]} 10. Ne4 {[%clk 0:02:51.2]} 10... Bd6 {[%clk 0:02:33.4]} 11. h3
{[%clk 0:02:50.3]} 11... Bh5 {[%clk 0:02:33]} 12. Ng3 {[%clk 0:02:30.4]} 12...
Bg6 {[%clk 0:02:32.2]} 13. Re1 {[%clk 0:02:24.9]} 13... Re8 {[%clk 0:02:23.2]}
14. Bg5 {[%clk 0:02:02.6]} 14... f6 {[%clk 0:02:13.8]} 15. Bxc6 {[%clk
0:02:00.6]} 15... bxc6 {[%clk 0:02:11.9]} 16. Be3 {[%clk 0:02:00.7]} 16... Nd5
{[%clk 0:02:09.5]} 17. Ne4 {[%clk 0:01:42.9]} 17... Nxe3 {[%clk 0:02:04.1]} 18.
Rxe3 {[%clk 0:01:43.1]} 18... Bf8 {[%clk 0:02:03.2]} 19. Qb3+ {[%clk 0:01:40.4]}
19... Bf7 {[%clk 0:02:02.7]} 20. Qa4 {[%clk 0:01:39.7]} 20... Qd5 {[%clk
0:01:38.4]} 21. c4 {[%clk 0:01:24]} 21... Qd7 {[%clk 0:01:36.3]} 22. Rd1 {[%clk
0:01:23.3]} 22... Red8 {[%clk 0:01:28.4]} 23. d4 {[%clk 0:01:21.7]} 23... c5
{[%clk 0:01:21.8]} 24. d5 {[%clk 0:01:18.5]} 24... Qxa4 {[%clk 0:01:21.3]} 0-1

[Event "Late-Titled-Tuesday-Blitz-June-25-2024"]
[Site "Chess.com"]
[Date "2024.06.25"]
[Round "3"]
[White "glebus008"]
[Black "Thjop"]
[Result "1-0"]
[WhiteElo "2401"]
[BlackElo "2589"]
[TimeControl "180+1"]
[EndTime "14:24:42 PDT"]
[Termination "glebus008 won by resignation"]

1. a3 {[%clk 0:03:00.9]} 1... e5 {[%clk 0:02:59.5]} 2. Nc3 {[%clk 0:02:59.9]}
2... d5 {[%clk 0:02:57.4]} 3. d4 {[%clk 0:02:59.3]} 3... e4 {[%clk 0:02:56.3]}
4. f3 {[%clk 0:02:58.8]} 4... f5 {[%clk 0:02:56.4]} 5. Bf4 {[%clk 0:02:58]} 5...
c6 {[%clk 0:02:54.4]} 6. e3 {[%clk 0:02:56.1]} 6... Bd6 {[%clk 0:02:53.5]} 7.
Nh3 {[%clk 0:02:56.2]} 7... h6 {[%clk 0:02:46.8]} 8. fxe4 {[%clk 0:02:50.6]}
8... fxe4 {[%clk 0:02:39.8]} 9. Qh5+ {[%clk 0:02:47.6]} 9... Kd7 {[%clk
0:02:39.3]} 10. Qg4+ {[%clk 0:02:42.5]} 10... Kc7 {[%clk 0:02:34]} 11. Qxg7+
{[%clk 0:02:41.7]} 11... Ne7 {[%clk 0:02:34.2]} 12. Bxd6+ {[%clk 0:02:36.2]}
12... Kxd6 {[%clk 0:02:35.1]} 13. Nf4 {[%clk 0:02:18.7]} 13... Bf5 {[%clk
0:02:30.9]} 14. g4 {[%clk 0:02:13.4]} 14... Bh7 {[%clk 0:02:22.7]} 15. Qe5+
{[%clk 0:02:03.4]} 15... Kd7 {[%clk 0:02:22.6]} 16. Qe6+ {[%clk 0:02:04.3]}
16... Ke8 {[%clk 0:02:18.6]} 17. Qxh6 {[%clk 0:01:54.8]} 17... Ng8 {[%clk
0:01:59.6]} 18. Qg7 {[%clk 0:01:29.5]} 18... Qh4+ {[%clk 0:01:59.3]} 19. Kd2
{[%clk 0:01:21.7]} 19... Nd7 {[%clk 0:02:00.2]} 20. Qxh8 {[%clk 0:01:15]} 20...
Kf7 {[%clk 0:01:59.1]} 21. Nh5 {[%clk 0:01:04.4]} 21... Ndf6 {[%clk 0:01:51.3]}
22. Qg7+ {[%clk 0:01:03.4]} 22... Ke6 {[%clk 0:01:51.6]} 23. Be2 {[%clk
0:00:55.4]} 23... Nxh5 {[%clk 0:01:47.5]} 24. Qxh7 {[%clk 0:00:50.2]} 1-0

[Event "Late-Titled-Tuesday-Blitz-June-25-2024"]
[Site "Chess.com"]
[Date "2024.06.25"]
[Round "3"]
[White "Bryanl106"]
[Black "kasparicy"]
[Result "1-0"]
[WhiteElo "2745"]
[BlackElo "2494"]
[TimeControl "180+1"]
[EndTime "14:24:51 PDT"]
[Termination "Bryanl106 won by resignation"]

1. e4 {[%clk 0:02:58.7]} 1... e5 {[%clk 0:02:55.5]} 2. Nf3 {[%clk 0:02:58.1]}
2... Nc6 {[%clk 0:02:54.1]} 3. Nc3 {[%clk 0:02:55.1]} 3... d6 {[%clk 0:02:49.6]}
4. d4 {[%clk 0:02:54.7]} 4... exd4 {[%clk 0:02:49.2]} 5. Nxd4 {[%clk 0:02:55.6]}
5... Nf6 {[%clk 0:02:48.2]} 6. Bc4 {[%clk 0:02:50.4]} 6... Be7 {[%clk 0:02:48]}
7. O-O {[%clk 0:02:49.9]} 7... O-O {[%clk 0:02:48.4]} 8. Re1 {[%clk 0:02:48.6]}
8... Re8 {[%clk 0:02:35.5]} 9. Bg5 {[%clk 0:02:36.8]} 9... h6 {[%clk 0:02:31.2]}
10. Bh4 {[%clk 0:02:36.6]} 10... Bg4 {[%clk 0:02:25.7]} 11. f3 {[%clk
0:02:35.6]} 11... Bh5 {[%clk 0:02:16.1]} 12. Nf5 {[%clk 0:02:33.7]} 12... Nh7
{[%clk 0:01:52.3]} 13. Nxe7+ {[%clk 0:02:31.3]} 13... Nxe7 {[%clk 0:01:52.4]}
14. Nd5 {[%clk 0:02:28.9]} 14... g5 {[%clk 0:01:52.3]} 15. Bf2 {[%clk
0:02:25.3]} 15... c6 {[%clk 0:01:48.4]} 16. Ne3 {[%clk 0:02:17.5]} 16... Bg6
{[%clk 0:01:43.3]} 17. Qd4 {[%clk 0:02:13.9]} 17... Qb6 {[%clk 0:01:37.1]} 18.
Rad1 {[%clk 0:02:04]} 18... Qxd4 {[%clk 0:01:34.9]} 19. Rxd4 {[%clk 0:02:03.3]}
19... Rad8 {[%clk 0:01:28.8]} 20. Red1 {[%clk 0:02:03.2]} 20... Nc8 {[%clk
0:01:29.3]} 21. Bb3 {[%clk 0:01:55.8]} 21... Re7 {[%clk 0:01:24.6]} 22. Bg3
{[%clk 0:01:54.3]} 22... Red7 {[%clk 0:01:19.1]} 23. Nc4 {[%clk 0:01:51.2]}
23... Nf6 {[%clk 0:00:49.6]} 24. Nxd6 {[%clk 0:01:48.3]} 24... Ne8 {[%clk
0:00:47.3]} 25. Nxf7 {[%clk 0:01:43.7]} 25... Rxd4 {[%clk 0:00:44.6]} 26. Nxd8+
{[%clk 0:01:43.1]} 26... Kh7 {[%clk 0:00:42.7]} 27. Rxd4 {[%clk 0:01:42.9]} 1-0

[Event "Late-Titled-Tuesday-Blitz-June-25-2024"]
[Site "Chess.com"]
[Date "2024.06.25"]
[Round "3"]
[White "Alex_Sahakyan2006"]
[Black "jlf287"]
[Result "1-0"]
[WhiteElo "2728"]
[BlackElo "2484"]
[TimeControl "180+1"]
[EndTime "14:24:56 PDT"]
[Termination "Alex_Sahakyan2006 won by resignation"]

1. e4 {[%clk 0:02:53.5]} 1... e5 {[%clk 0:02:59.7]} 2. Nf3 {[%clk 0:02:53.3]}
2... Nc6 {[%clk 0:02:58.9]} 3. Nc3 {[%clk 0:02:52.4]} 3... Nf6 {[%clk
0:02:58.2]} 4. Bb5 {[%clk 0:02:51.7]} 4... Nd4 {[%clk 0:02:58.6]} 5. Bc4 {[%clk
0:02:51.3]} 5... Bc5 {[%clk 0:02:55.2]} 6. d3 {[%clk 0:02:49.6]} 6... d6 {[%clk
0:02:51.7]} 7. h3 {[%clk 0:02:48.5]} 7... h6 {[%clk 0:02:49.1]} 8. Nxd4 {[%clk
0:02:45.8]} 8... Bxd4 {[%clk 0:02:49.2]} 9. Qf3 {[%clk 0:02:46.4]} 9... c6
{[%clk 0:02:46.9]} 10. Ne2 {[%clk 0:02:46.2]} 10... Bb6 {[%clk 0:02:46.7]} 11.
Ng3 {[%clk 0:02:46.8]} 11... Be6 {[%clk 0:02:36.8]} 12. Bb3 {[%clk 0:02:47.1]}
12... Qd7 {[%clk 0:02:31.6]} 13. Be3 {[%clk 0:02:41.5]} 13... Bxe3 {[%clk
0:02:30.7]} 14. fxe3 {[%clk 0:02:35.9]} 14... O-O {[%clk 0:02:28.8]} 15. O-O
{[%clk 0:02:34.5]} 15... a5 {[%clk 0:02:21.3]} 16. c3 {[%clk 0:02:21.7]} 16...
a4 {[%clk 0:02:20.7]} 17. Bc2 {[%clk 0:02:22]} 17... d5 {[%clk 0:02:12.5]} 18.
Nf5 {[%clk 0:02:16.8]} 18... dxe4 {[%clk 0:02:02.8]} 19. dxe4 {[%clk 0:02:16.6]}
19... Bxf5 {[%clk 0:02:03.1]} 20. exf5 {[%clk 0:02:16.7]} 20... Rfe8 {[%clk
0:01:55.4]} 21. Rad1 {[%clk 0:02:14.8]} 21... Qc7 {[%clk 0:01:55.5]} 22. e4
{[%clk 0:02:13.3]} 22... Qb6+ {[%clk 0:01:55.4]} 23. Rf2 {[%clk 0:02:08]} 23...
Qxb2 {[%clk 0:01:39.3]} 24. Bxa4 {[%clk 0:02:06.3]} 24... Qa3 {[%clk 0:01:38.6]}
25. Bb3 {[%clk 0:02:06.5]} 25... Red8 {[%clk 0:01:34.3]} 26. Rfd2 {[%clk
0:02:07]} 26... Qa5 {[%clk 0:01:30]} 27. Kh2 {[%clk 0:02:04.7]} 27... Rxd2
{[%clk 0:01:29.3]} 28. Rxd2 {[%clk 0:02:05.6]} 28... Rd8 {[%clk 0:01:29.7]} 29.
Rd3 {[%clk 0:02:02.1]} 29... Kf8 {[%clk 0:01:09.7]} 30. Qd1 {[%clk 0:01:58.2]}
30... Rxd3 {[%clk 0:01:09.8]} 31. Qxd3 {[%clk 0:01:59.1]} 31... Ke7 {[%clk
0:00:59.2]} 32. Qc4 {[%clk 0:01:58.5]} 32... Nd7 {[%clk 0:00:48.4]} 33. Qxf7+
{[%clk 0:01:58.1]} 33... Kd6 {[%clk 0:00:48.9]} 34. Qxg7 {[%clk 0:01:53.9]}
34... Kc7 {[%clk 0:00:49.2]} 35. Be6 {[%clk 0:01:53.3]} 1-0

[Event "Late-Titled-Tuesday-Blitz-June-25-2024"]
[Site "Chess.com"]
[Date "2024.06.25"]
[Round "3"]
[White "MagnusCarlsen"]
[Black "SujanaLohani"]
[Result "1-0"]
[WhiteElo "3164"]
[BlackElo "2292"]
[TimeControl "180+1"]
[EndTime "14:24:59 PDT"]
[Termination "MagnusCarlsen won by resignation"]

1. h4 {[%clk 0:02:59.1]} 1... d5 {[%clk 0:02:58.1]} 2. e3 {[%clk 0:02:57.1]}
2... Nf6 {[%clk 0:02:57.4]} 3. c4 {[%clk 0:02:56.5]} 3... e6 {[%clk 0:02:54.8]}
4. g4 {[%clk 0:02:55.6]} 4... c5 {[%clk 0:02:53.1]} 5. g5 {[%clk 0:02:55.2]}
5... Nfd7 {[%clk 0:02:50.4]} 6. cxd5 {[%clk 0:02:54.4]} 6... exd5 {[%clk
0:02:50.1]} 7. Bg2 {[%clk 0:02:55]} 7... Ne5 {[%clk 0:02:46.5]} 8. d4 {[%clk
0:02:53.4]} 8... cxd4 {[%clk 0:02:37.3]} 9. exd4 {[%clk 0:02:53]} 9... Bb4+
{[%clk 0:02:33.5]} 10. Nc3 {[%clk 0:02:51.7]} 10... Nec6 {[%clk 0:02:31.1]} 11.
Ne2 {[%clk 0:02:49.8]} 11... O-O {[%clk 0:02:29.1]} 12. h5 {[%clk 0:02:48.7]}
12... Re8 {[%clk 0:02:26.7]} 13. g6 {[%clk 0:02:46.8]} 13... Bg4 {[%clk
0:02:22.9]} 14. gxf7+ {[%clk 0:02:46.1]} 14... Kxf7 {[%clk 0:02:23.4]} 15. Be3
{[%clk 0:02:45.9]} 15... Ne7 {[%clk 0:02:02.7]} 16. Qb3 {[%clk 0:02:39.8]} 16...
Nbc6 {[%clk 0:02:01.1]} 17. Kf1 {[%clk 0:02:39.1]} 17... Kg8 {[%clk 0:01:29.2]}
18. Nf4 {[%clk 0:02:33.3]} 18... Nf5 {[%clk 0:01:16.6]} 19. Bxd5+ {[%clk
0:02:25.4]} 19... Kh8 {[%clk 0:01:15.5]} 20. Ng6+ {[%clk 0:02:23.7]} 20... hxg6
{[%clk 0:01:13.9]} 21. hxg6+ {[%clk 0:02:24.6]} 21... Nh4 {[%clk 0:00:34.8]} 22.
Ne4 {[%clk 0:02:22.7]} 22... Bf3 {[%clk 0:00:19.9]} 23. Bg5 {[%clk 0:02:18.4]}
23... Qxd5 {[%clk 0:00:16.4]} 24. Rxh4+ {[%clk 0:02:16.3]} 24... Kg8 {[%clk
0:00:12.7]} 25. Qxd5+ {[%clk 0:02:15.7]} 1-0

[Event "Late-Titled-Tuesday-Blitz-June-25-2024"]
[Site "Chess.com"]
[Date "2024.06.25"]
[Round "3"]
[White "RodriQA"]
[Black "Bob_2004"]
[Result "0-1"]
[WhiteElo "2487"]
[BlackElo "2742"]
[TimeControl "180+1"]
[EndTime "14:25:02 PDT"]
[Termination "Bob_2004 won by resignation"]

1. Nf3 {[%clk 0:03:00.9]} 1... Nf6 {[%clk 0:02:57.7]} 2. g3 {[%clk 0:03:00.5]}
2... d5 {[%clk 0:02:56.7]} 3. Bg2 {[%clk 0:02:59.2]} 3... Bf5 {[%clk 0:02:55.7]}
4. c4 {[%clk 0:02:56.7]} 4... c6 {[%clk 0:02:52.6]} 5. Qb3 {[%clk 0:02:55.6]}
5... Qb6 {[%clk 0:02:51.8]} 6. d3 {[%clk 0:02:55.4]} 6... e6 {[%clk 0:02:51.4]}
7. Be3 {[%clk 0:02:55.1]} 7... Qa5+ {[%clk 0:02:50.9]} 8. Nc3 {[%clk 0:02:47.8]}
8... Qc7 {[%clk 0:02:49.7]} 9. Nh4 {[%clk 0:02:29.4]} 9... Bg4 {[%clk
0:02:45.6]} 10. h3 {[%clk 0:02:29.2]} 10... Bh5 {[%clk 0:02:43.9]} 11. g4 {[%clk
0:02:29.7]} 11... Bg6 {[%clk 0:02:44]} 12. Rc1 {[%clk 0:02:23.8]} 12... Qd7
{[%clk 0:02:38.4]} 13. Nxg6 {[%clk 0:02:12.3]} 13... hxg6 {[%clk 0:02:35.9]} 14.
g5 {[%clk 0:01:29.2]} 14... Nh5 {[%clk 0:02:32.7]} 15. Qa4 {[%clk 0:01:17.9]}
15... d4 {[%clk 0:02:10.2]} 16. Nd5 {[%clk 0:00:41.6]} 16... exd5 {[%clk
0:01:43.4]} 17. Bxd4 {[%clk 0:00:39.3]} 17... dxc4 {[%clk 0:01:34.8]} 18. Qxc4
{[%clk 0:00:39]} 18... Be7 {[%clk 0:01:35.1]} 19. b4 {[%clk 0:00:35.9]} 19...
Bxg5 {[%clk 0:01:32.9]} 20. b5 {[%clk 0:00:35.7]} 20... Bxc1 {[%clk 0:01:27.7]}
0-1